bitfinex/quotes_SOLUSD_20250719
["timestamp","ask_amount","ask_price","bid_price","bid_amount"]
[1752958055015,29.58691231,177.76,177.75,1e-08]
[1752958055215,69.30691231,177.76,177.75,1e-08]
[1752958056018,74.93247486,177.76,177.75,1e-08]
[1752958056631,71.34556255,177.76,177.75,1e-08]
[1752958056838,74.25247486,177.76,177.75,1e-08]
[1752958057354,70.66556255,177.76,177.75,1e-08]
[1752958057641,74.25247486,177.76,177.75,1e-08]
[1752958057849,74.93247486,177.76,177.75,1e-08]
[1752958060343,91.71715883,177.76,177.75,1e-08]
[1752958060538,96.19869825,177.76,177.75,1e-08]
[1752958064353,32.30556255,177.76,177.75,1e-08]
[1752958064546,74.95247486,177.76,177.75,1e-08]
[1752958065528,79.54598505,177.76,177.75,1e-08]
[1752958066253,40.48598505,177.76,177.75,1e-08]
[1752958066556,79.54598505,177.76,177.75,1e-08]
[1752958069554,79.54598505,177.76,177.71,0.7]
[1752958069753,3.58691231,177.73,177.68,3.58691231]
[1752958069963,39.04,177.72,177.68,3.58691231]
[1752958070148,39.04,177.72,177.69,3.58691231]
[1752958070665,3.58691231,177.73,177.69,3.58691231]
[1752958070861,39.04,177.72,177.69,3.58691231]
[1752958071107,39.04,177.71,177.7,3.58691231]
[1752958071641,44.66714534,177.71,177.7,0.67]
[1752958071943,44.66714534,177.71,177.7,4.25691231]
[1752958073864,5.62651212,177.73,177.7,4.25691231]
[1752958074157,39.04,177.72,177.71,0.67]
[1752958075153,44.66682871,177.72,177.71,0.67]
[1752958081498,5.62651212,177.73,177.71,0.67]
[1752958081864,39.04,177.72,177.71,0.67]
[1752958082562,39.04,177.72,177.7,0.03]
[1752958083174,39.04,177.72,177.71,0.67]
[1752958083575,44.66682871,177.72,177.71,0.67]
[1752958086679,39.04,177.72,177.71,0.67]
[1752958087092,44.66682871,177.72,177.71,0.67]
[1752958088068,44.66682871,177.72,177.71,2.96737779]
[1752958089299,44.66682871,177.72,177.71,0.67]
[1752958091099,44.66682871,177.72,177.7,0.03]
[1752958091486,44.66682871,177.72,177.7,0.7]
[1752958092299,44.66682871,177.72,177.71,0.67]
[1752958101894,44.66682871,177.72,177.7,0.7]
[1752958103624,44.66682871,177.72,177.7,0.03]
[1752958103833,44.66682871,177.72,177.71,0.72]
[1752958107026,44.66682871,177.72,177.7,0.03]
[1752958107517,5.62682871,177.72,177.7,0.75]
[1752958107940,44.66682871,177.72,177.7,0.75]
[1752958109047,5.62682871,177.72,177.7,0.75]
[1752958109218,44.66682871,177.72,177.7,0.75]
[1752958110644,14.12390639,177.76,177.71,2.29737779]
[1752958110847,39.04,177.75,177.72,3.01737779]
[1752958111023,39.04,177.75,177.73,3.01737779]
[1752958111345,39.04,177.75,177.74,0.72]
[1752958111653,44.66587904,177.75,177.74,0.72]
[1752958113064,5.6856443,177.76,177.74,3.01737779]
[1752958113254,44.7056443,177.76,177.75,3.01737779]
[1752958113424,5.6856443,177.76,177.75,3.01737779]
[1752958113614,0.06,177.76,177.75,3.01737779]
[1752958115238,0.06,177.76,177.75,0.72]
[1752958115447,0.06,177.76,177.75,3.01737779]
[1752958115624,0.06,177.76,177.75,2.29737779]
[1752958116025,0.06,177.76,177.75,3.01737779]
[1752958116733,0.06,177.76,177.75,0.72]
[1752958117140,0.06,177.76,177.75,3.01737779]
[1752958118619,0.06,177.76,177.75,25.4279408]
[1752958118841,0.06,177.76,177.75,60.61745196]
[1752958121035,0.03193182,177.8,177.78,26.0]
[1752958121242,0.03193182,177.8,177.79,24.70667506]
[1752958121554,0.03193182,177.8,177.79,25.42667506]
[1752958123677,0.06,177.83,177.82,42.78468397]
[1752958124141,0.06,177.83,177.82,45.80206176]
[1752958125549,0.06,177.83,177.82,51.42572613]
[1752958125739,0.06,177.83,177.82,45.80206176]
[1752958126142,0.06,177.83,177.82,51.42572613]
[1752958128059,2.29737779,177.91,177.82,51.42572613]
[1752958128352,2.29737779,177.91,177.83,39.74]
[1752958128732,2.29737779,177.91,177.84,0.72]
[1752958129829,19.67240271,177.92,177.84,0.72]
[1752958130030,2.29737779,177.91,177.84,0.72]
[1752958130556,0.65,177.9,177.84,0.72]
[1752958130742,0.65,177.9,177.86,2.29737779]
[1752958130940,0.65,177.89,177.86,2.29737779]
[1752958133060,5.62176748,177.88,177.86,2.29737779]
[1752958134844,5.62176748,177.88,177.85,3.01737779]
[1752958136661,5.62176748,177.88,177.86,2.97737779]
[1752958136856,5.62176748,177.88,177.87,2.97737779]
[1752958138363,5.62113546,177.9,177.87,2.97737779]
[1752958138565,5.62113546,177.9,177.88,2.97737779]
[1752958140454,5.62081951,177.91,177.88,2.97737779]
[1752958140764,5.62081951,177.91,177.84,5.62281762]
[1752958140765,0.65,177.9,177.85,2.97737779]
[1752958141065,5.62081951,177.91,177.87,2.29737779]
[1752958141270,5.62081951,177.91,177.88,2.29737779]
[1752958141448,5.62081951,177.91,177.88,2.97737779]
[1752958141857,5.62081951,177.91,177.87,2.29737779]
[1752958142064,6.27081951,177.91,177.87,2.29737779]
[1752958142372,0.65,177.9,177.87,2.29737779]
[1752958143065,5.62145145,177.89,177.87,2.29737779]
[1752958143249,5.62145145,177.89,177.87,2.97737779]
[1752958144289,5.62113546,177.9,177.87,2.97737779]
[1752958144572,5.62050359,177.92,177.88,2.97737779]
[1752958144770,5.62050359,177.92,177.89,2.97737779]
[1752958145073,5.62050359,177.92,177.9,0.68]
[1752958145275,5.62050359,177.92,177.89,0.68]
[1752958145441,6.27050359,177.92,177.89,0.68]
[1752958145946,6.27050359,177.92,177.89,2.97737779]
[1752958146147,5.62018771,177.93,177.89,2.97737779]
[1752958146368,6.27018771,177.93,177.89,2.97737779]
[1752958147063,5.62018771,177.93,177.9,0.68]
[1752958147262,5.62018771,177.93,177.9,2.97737779]
[1752958147454,5.62018771,177.93,177.91,2.97737779]
[1752958148772,5.61987186,177.94,177.91,0.68]
[1752958149268,6.26987186,177.94,177.9,2.29737779]
[1752958149466,5.61987186,177.94,177.9,2.29737779]
[1752958149667,2.29737779,177.91,177.88,26.0]
[1752958149876,0.65,177.9,177.88,26.0]
[1752958150951,5.62145145,177.89,177.88,26.0]
[1752958151575,5.62145145,177.89,177.87,26.0]
[1752958152151,5.62145145,177.89,177.87,26.68]
[1752958152878,5.62081951,177.91,177.87,26.68]
[1752958153047,5.62081951,177.91,177.88,0.68]
[1752958153691,5.62081951,177.91,177.88,4.26252047]
[1752958153869,5.62081951,177.91,177.89,4.26252047]
[1752958155281,5.62018771,177.93,177.89,4.26252047]
[1752958155665,6.27018771,177.93,177.89,4.26252047]
[1752958156581,5.62018771,177.93,177.9,0.68]
[1752958157078,5.62018771,177.93,177.9,4.26252047]
[1752958157377,5.61987186,177.94,177.9,3.58252047]
[1752958157579,0.65,177.93,177.9,3.58252047]
[1752958157880,0.65,177.93,177.89,3.58252047]
[1752958158056,0.65,177.92,177.88,30.26252047]
[1752958159163,0.65,177.92,177.89,0.68]
[1752958159484,5.62050359,177.92,177.89,0.68]
[1752958160461,6.27050359,177.92,177.88,3.58252047]
[1752958160664,6.27050359,177.92,177.88,4.26252047]
[1752958161211,6.27050359,177.92,177.9,0.03]
[1752958163978,5.62050359,177.92,177.9,0.03]
[1752958165062,6.27050359,177.92,177.9,0.03]
[1752958165276,5.62050359,177.92,177.9,0.03]
[1752958165477,5.61987186,177.94,177.91,0.72]
[1752958165705,5.61987186,177.94,177.93,3.58252047]
[1752958165865,0.06,177.95,177.93,4.30252047]
[1752958166057,0.06,177.95,177.94,4.30252047]
[1752958168191,0.06,177.95,177.94,0.72]
[1752958168489,0.06,177.95,177.94,4.30252047]
[1752958177400,0.06,177.95,177.94,30.30252047]
[1752958178401,0.06,177.95,177.94,92.1470763]
[1752958179180,0.06,177.95,177.94,90.85449359]
[1752958180402,0.06,177.95,177.94,96.95129359]
[1752958181015,0.06,177.95,177.94,98.23892356]
[1752958182995,0.06,177.95,177.94,98.26892356]
[1752958183487,0.06,177.95,177.94,98.56892356]
[1752958184309,0.06,177.95,177.94,99.13091074]
[1752958185201,0.06,177.95,177.94,98.56892356]
[1752958185606,0.06,177.95,177.94,0.33]
[1752958185790,0.06,177.95,177.94,4.62756773]
[1752958187209,0.06,177.95,177.94,27.03212356]
[1752958188289,0.06,177.95,177.94,21.4122517]
[1752958189122,0.06,177.95,177.94,17.83468397]
[1752958189324,0.06,177.95,177.94,21.4122517]
[1752958192506,0.06,177.95,177.94,17.83468397]
[1752958192705,0.06,177.95,177.94,21.4122517]
[1752958193129,0.06,177.95,177.94,27.03212356]
[1752958194841,0.06,177.95,177.94,21.4122517]
[1752958196602,0.06,177.95,177.94,27.03212356]
[1752958196817,0.06,177.95,177.94,21.4122517]
[1752958197443,0.06,177.95,177.94,27.03212356]
[1752958198915,0.1,177.97,177.96,42.78468397]
[1752958199239,0.1,177.97,177.96,85.7422517]
[1752958199410,0.1,177.97,177.96,86.4322517]
[1752958200232,0.1,177.97,177.96,92.05149197]
[1752958200737,0.06,177.99,177.97,18.31828397]
[1752958200934,0.06,178.03,178.02,16.78468397]
[1752958201146,0.06,178.03,178.02,63.61981943]
[1752958201313,7.7754,178.02,177.94,0.03]
[1752958201507,2.3542,178.01,177.94,0.03]
[1752958201724,1.6642,178.01,178.0,3.57756773]
[1752958201919,0.06,178.03,178.01,26.0]
[1752958202117,0.06,178.03,178.02,3.57756773]
[1752958202429,0.69,178.02,178.01,3.57756773]
[1752958202638,0.06,178.03,178.01,39.48]
[1752958202819,0.06,178.03,178.02,3.57756773]
[1752958203725,0.75,178.03,178.02,3.57756773]
[1752958204439,0.06,178.03,178.02,49.93981943]
[1752958204625,0.06,178.03,178.02,50.62981943]
[1752958204938,0.06,178.03,178.02,56.24716579]
[1752958205446,0.06,178.03,178.02,30.24716579]
[1752958207035,7.27933841,178.09,177.99,6.376]
[1752958207222,0.69,178.06,178.04,3.57756773]
[1752958207636,7.27933841,178.09,178.04,3.57756773]
[1752958207637,0.69,178.05,178.04,3.57756773]
[1752958209439,6.30639988,178.05,178.04,3.57756773]
[1752958211246,5.61611276,178.06,178.02,40.23]
[1752958211434,6.30611276,178.06,178.04,3.57756773]
[1752958211651,0.69,178.05,178.03,3.57756773]
[1752958211851,0.69,178.05,177.98,0.69]
[1752958212050,0.69,178.05,178.01,3.57756773]
[1752958212641,19.6585037,178.04,177.99,39.5]
[1752958212845,0.69,178.03,178.01,3.57756773]
[1752958213058,5.61671534,178.04,178.02,3.57756773]
[1752958214274,6.30647148,178.05,178.02,3.57756773]
[1752958214449,6.30647148,178.05,178.03,3.57756773]
[1752958216040,0.06,178.07,178.04,3.57756773]
[1752958216240,0.75,178.07,178.06,3.57756773]
[1752958216645,0.75,178.07,178.05,3.57756773]
[1752958216844,0.69,178.06,178.05,3.57756773]
[1752958217047,6.30608446,178.06,178.05,3.57756773]
[1752958217244,6.30608446,178.06,178.04,3.57756773]
[1752958217463,0.69,178.05,178.03,3.57756773]
[1752958217673,0.69,178.05,178.02,65.5]
[1752958218169,0.69,178.05,178.03,3.57756773]
[1752958218563,0.69,178.05,178.04,3.57756773]
[1752958218942,6.3658378,178.07,178.04,3.57756773]
[1752958219263,6.3658378,178.07,178.05,3.57756773]
[1752958221769,0.69,178.06,178.04,3.57756773]
[1752958223679,5.61639988,178.05,178.04,3.57756773]
[1752958224550,6.30618367,178.06,178.04,3.57756773]
[1752958224757,5.61618367,178.06,178.04,3.57756773]
[1752958226279,0.67,178.06,178.04,3.57756773]
[1752958227041,0.67,178.06,178.03,0.03]
[1752958227270,0.67,178.06,178.04,3.57756773]
[1752958228073,5.61639988,178.05,178.04,3.57756773]
[1752958228847,5.61615542,178.06,178.03,0.03]
[1752958229247,0.67,178.05,178.03,3.60756773]
[1752958229448,5.67585052,178.07,178.04,3.57756773]
[1752958229773,5.67585052,178.07,178.05,3.57756773]
[1752958231452,5.67585052,178.07,178.04,4.29756773]
[1752958232045,0.73,178.07,178.04,3.57756773]
[1752958232367,0.73,178.07,178.03,26.03]
[1752958232368,0.67,178.06,178.03,26.03]
[1752958232578,0.67,178.06,178.03,29.60756773]
[1752958233499,0.67,178.05,178.0,0.72]
[1752958233786,0.73,178.07,178.03,3.57756773]
[1752958234080,0.06,178.07,178.03,4.29756773]
[1752958234251,0.06,178.07,178.04,4.29756773]
[1752958240380,0.06,178.07,178.04,0.72]
[1752958240582,0.06,178.07,178.05,0.72]
[1752958241693,0.06,178.07,178.04,3.57756773]
[1752958241860,0.06,178.07,178.03,3.57756773]
[1752958242180,0.06,178.07,178.03,4.29756773]
[1752958242371,0.06,178.07,178.04,3.57756773]
[1752958242570,0.06,178.07,178.04,4.29756773]
[1752958243085,0.06,178.07,178.05,4.29756773]
[1752958244773,0.06,178.07,178.06,0.72]
[1752958245986,0.06,178.07,178.06,4.29756773]
[1752958254078,0.06,178.07,178.06,0.72]
[1752958254791,0.06,178.07,178.06,4.29756773]
[1752958259905,0.06,178.07,178.04,0.72]
[1752958260083,0.06,178.07,178.05,3.57756773]
[1752958260280,0.06,178.07,178.06,3.57756773]
[1752958260770,0.06,178.07,178.05,4.29756773]
[1752958261172,0.06,178.07,178.05,0.72]
[1752958261368,0.06,178.07,178.05,4.29756773]
[1752958261572,0.06,178.07,178.06,0.72]
[1752958262885,0.06,178.07,178.06,4.29756773]
[1752958265304,50.73428397,178.05,177.99,0.03]
[1752958265474,0.73,178.07,177.99,0.75]
[1752958265671,29.57756773,178.06,177.99,0.75]
[1752958265875,1.23176619,178.05,178.01,3.57756773]
[1752958266202,26.0,178.06,178.01,4.29756773]
[1752958266387,27.23176619,178.06,178.01,4.29756773]
[1752958266803,0.56176619,178.06,178.03,3.57756773]
[1752958267003,0.06,178.07,178.04,4.29756773]
[1752958267890,0.06,178.07,178.05,0.72]
[1752958268605,0.06,178.07,178.03,4.29756773]
[1752958268790,0.06,178.07,178.04,0.72]
[1752958269198,5.67576907,178.07,178.04,0.72]
[1752958271005,26.0,177.99,177.93,1e-08]
[1752958271318,26.0,178.03,177.94,17.32610456]
[1752958271480,3.57756773,178.01,177.95,4.29756773]
[1752958271800,26.0,178.04,177.98,3.57756773]
[1752958272109,26.56176619,178.04,177.99,0.72]
[1752958272278,30.13933392,178.04,178.0,0.72]
[1752958272687,30.80933392,178.04,178.0,0.72]
[1752958272887,5.61703083,178.03,178.0,0.72]
[1752958273300,10.42636475,178.03,177.98,0.72]
[1752958273898,6.84879702,178.03,177.98,3.57756773]
[1752958274106,20.22137411,178.03,177.99,0.72]
[1752958274306,20.22137411,178.03,177.98,3.57756773]
[1752958274486,20.22137411,178.03,178.0,0.72]
[1752958275980,20.22137411,178.03,177.98,0.72]
[1752958276187,23.79894184,178.03,177.98,0.72]
[1752958276488,29.57756773,177.99,177.93,1e-08]
[1752958276688,29.57756773,177.99,177.87,2.92617062]
[1752958276689,26.0,177.9,177.85,0.2]
[1752958276901,2.926171,177.98,177.87,68.46800373]
[1752958277078,2.926171,177.98,177.9,26.0]
[1752958277399,5.61892453,177.97,177.94,3.57756773]
[1752958277596,5.61797752,178.0,177.96,3.57756773]
[1752958277796,5.61797752,178.0,177.99,3.57756773]
[1752958278209,26.0,178.03,177.99,3.57756773]
[1752958278414,0.67,178.06,178.02,3.57756773]
[1752958278581,6.28608446,178.06,178.02,3.57756773]
[1752958278784,5.61608446,178.06,178.03,3.57756773]
[1752958279381,0.06,178.07,178.04,3.57756773]
[1752958279611,5.67576907,178.07,178.04,3.57756773]
[1752958279784,5.67576907,178.07,178.05,3.57756773]
[1752958279995,5.67576907,178.07,178.06,3.57756773]
[1752958280710,5.67576907,178.07,178.05,3.57756773]
[1752958281601,0.06,178.07,178.05,3.57756773]
[1752958282712,0.06,178.07,178.06,3.57756773]
[1752958283600,0.06,178.07,178.06,4.29756773]
[1752958287817,16.5232,178.05,177.93,5.674508]
[1752958288016,5.734508,178.07,177.94,42.2]
[1752958288203,0.06,178.07,178.05,3.57756773]
[1752958289210,0.06,178.07,178.06,3.57756773]
[1752958289410,0.06,178.07,178.06,4.29756773]
[1752958291910,0.06,178.07,178.06,3.57756773]
[1752958295930,0.06,178.07,178.06,4.29756773]
[1752958297630,0.06,178.07,178.06,45.79756773]
[1752958298913,0.06,178.07,178.06,62.5822517]
[1752958299329,0.06,178.07,178.06,17.50468397]
[1752958299537,0.06,178.07,178.06,62.5422517]
[1752958300106,0.06,178.07,178.06,58.96468397]
[1752958300309,0.06,178.07,178.06,68.15833616]
[1752958300538,0.06,178.1,178.09,42.78468397]
[1752958300744,0.06,178.1,178.09,91.41981943]
[1752958300916,0.06,178.11,178.1,16.78468397]
[1752958301112,0.06,178.11,178.1,24.65981943]
[1752958301338,0.66182931,178.25,178.16,42.78468397]
[1752958301633,5.61041292,178.24,178.22,3.57756773]
[1752958301831,0.66,178.23,178.21,3.57756773]
[1752958302233,5.61041292,178.24,178.21,3.57756773]
[1752958302542,6.27041292,178.24,178.21,3.57756773]
[1752958303237,5.71017284,178.25,178.19,42.38]
[1752958303552,6.27200215,178.25,178.21,3.57756773]
[1752958303712,5.71017284,178.25,178.23,3.57756773]
[1752958304012,5.71017284,178.25,178.21,42.36]
[1752958304215,5.71017284,178.25,178.24,3.57756773]
[1752958305718,5.71017284,178.25,178.22,17.50468397]
[1752958305919,5.71017284,178.25,178.24,3.57756773]
[1752958307617,5.71017284,178.25,178.23,3.57756773]
[1752958308236,5.71017284,178.25,178.23,4.29756773]
[1752958308546,5.71017284,178.25,178.24,3.57756773]
[1752958311139,0.1,178.25,178.24,4.29756773]
[1752958311383,0.1,178.25,178.24,21.0822517]
[1752958312942,5.60789591,178.32,178.25,16.78468397]
[1752958313119,5.60789591,178.32,178.29,3.57756773]
[1752958313320,19.6276357,178.32,178.28,3.57756773]
[1752958313646,20.3176357,178.32,178.28,3.57756773]
[1752958313825,20.18946501,178.32,178.28,3.57756773]
[1752958314029,0.69,178.31,178.28,3.57756773]
[1752958314945,6.16972522,178.32,178.29,4.26756773]
[1752958315242,6.16972522,178.32,178.29,3.57756773]
[1752958315243,5.60789591,178.32,178.29,3.57756773]
[1752958315445,5.60789591,178.32,178.29,4.26756773]
[1752958316025,5.60789591,178.32,178.3,3.57756773]
[1752958316449,5.60789591,178.32,178.31,3.57756773]
[1752958316947,0.06,178.33,178.31,3.57756773]
[1752958317129,0.06,178.33,178.3,3.57756773]
[1752958318120,0.06,178.33,178.31,3.57756773]
[1752958318319,0.06,178.33,178.3,3.57756773]
[1752958319051,0.06,178.33,178.3,4.26756773]
[1752958319737,0.06,178.33,178.17,0.69]
[1752958319738,26.0,178.28,178.17,0.69]
[1752958319923,42.55182931,178.32,178.17,0.69]
[1752958319924,1.25182931,178.27,178.18,6.0126]
[1752958320129,26.0,178.31,178.2,3.57756773]
[1752958320353,5.60852495,178.3,178.28,3.57756773]
[1752958320531,0.69,178.29,178.24,17.47468397]
[1752958320844,0.69,178.29,178.26,16.78468397]
[1752958321254,5.60852495,178.3,178.26,21.0522517]
[1752958321438,5.60852495,178.3,178.27,0.69]
[1752958322736,5.60821042,178.31,178.27,0.69]
[1752958323044,9.18577815,178.31,178.27,0.69]
[1752958324929,5.60821042,178.31,178.26,20.3622517]
[1752958325127,5.60821042,178.31,178.28,0.69]
[1752958325750,5.60821042,178.31,178.29,0.69]
[1752958326646,5.60821042,178.31,178.28,45.01756773]
[1752958326848,5.66758145,178.33,178.3,0.69]
[1752958329351,0.06,178.33,178.3,0.69]
[1752958331755,3.63756773,178.33,178.28,45.70756773]
[1752958331954,0.06,178.33,178.28,45.01756773]
[1752958332261,0.06,178.33,178.29,4.26756773]
[1752958332446,0.06,178.33,178.29,0.69]
[1752958332647,0.06,178.33,178.29,4.26756773]
[1752958332851,0.06,178.33,178.29,0.69]
[1752958333046,0.06,178.33,178.29,4.26756773]
[1752958335370,4.26756773,178.32,178.28,41.28]
[1752958335668,9.87560429,178.32,178.28,41.28]
[1752958335975,0.69,178.32,178.28,41.97]
[1752958336137,9.87547349,178.32,178.28,41.97]
[1752958336640,9.18548572,178.32,178.28,41.97]
[1752958337037,0.06,178.33,178.31,3.57756773]
[1752958337256,0.06,178.33,178.32,41.24]
[1752958337639,0.06,178.33,178.32,67.90014761]
[1752958344170,0.06,178.33,178.32,68.40014761]
[1752958344880,0.06,178.33,178.32,62.7922517]
[1752958345059,0.06,178.33,178.32,62.6922517]
[1752958345372,0.06,178.33,178.32,102.06014761]
[1752958345547,0.06,178.33,178.32,55.3122517]
[1752958345871,0.06,178.33,178.32,96.3922517]
[1752958346248,0.06,178.33,178.32,102.00014761]
[1752958349273,0.06,178.33,178.32,101.96014761]
[1752958349585,4.701094,178.35,178.32,101.96014761]
[1752958349586,4.701094,178.35,178.34,50.54468397]
[1752958349754,4.701094,178.35,178.34,95.1422517]
[1752958349952,4.701094,178.35,178.34,95.8022517]
[1752958350283,4.701094,178.35,178.34,77.20468397]
[1752958350486,4.701094,178.35,178.34,88.0222517]
[1752958350660,4.701094,178.35,178.34,93.62951871]
[1752958351772,26.0,178.33,178.32,0.5]
[1752958351955,4.701094,178.35,178.3,0.66]
[1752958352150,4.701094,178.35,178.33,3.57756773]
[1752958352353,4.701094,178.35,178.34,21.0222517]
[1752958352848,4.701094,178.35,178.34,17.44468397]
[1752958353049,4.701094,178.35,178.34,21.0222517]
[1752958354364,4.701094,178.35,178.34,62.3822517]
[1752958355666,4.761094,178.35,178.34,62.3822517]
[1752958363663,4.761094,178.35,178.32,16.81468397]
[1752958363865,4.761094,178.35,178.34,20.3622517]
[1752958367684,4.761094,178.35,178.34,21.0222517]
[1752958371098,5.421094,178.35,178.34,57.78468397]
[1752958371284,5.421094,178.35,178.34,61.3622517]
[1752958371285,4.761094,178.35,178.34,61.3622517]
[1752958374400,4.761094,178.35,178.34,62.0722517]
[1752958380786,4.761094,178.35,178.34,67.67951871]
[1752958381196,4.761094,178.35,178.34,70.54220319]
[1752958381594,4.761094,178.35,178.34,104.86292989]
[1752958382387,0.06,178.36,178.35,76.54468397]
[1752958382589,0.06,178.36,178.35,80.8322517]
[1752958382788,0.06,178.39,178.38,26.0]
[1752958382993,0.06,178.39,178.38,90.73981943]
[1752958383206,0.06,178.39,178.38,43.49468397]
[1752958383502,0.06,178.39,178.38,42.78468397]
[1752958383702,0.06,178.39,178.32,14.34915258]
[1752958383703,0.74,178.39,178.32,0.03]
[1752958383903,26.0,178.3,178.28,0.03]
[1752958384111,8.39696477,178.29,178.28,1e-08]
[1752958384310,0.68,178.34,178.29,17.49468397]
[1752958384605,0.68,178.33,178.28,3.57756774]
[1752958384804,5.60789591,178.32,178.29,41.28]
[1752958385104,6.28789591,178.32,178.29,44.85756773]
[1752958386290,6.28789591,178.32,178.29,3.57756773]
[1752958386490,6.28789591,178.32,178.29,44.85756773]
[1752958386903,6.28789591,178.32,178.3,3.57756773]
[1752958387084,5.60726701,178.34,178.31,3.57756773]
[1752958387287,6.28726701,178.34,178.32,3.57756773]
[1752958387496,0.68,178.33,178.31,41.26]
[1752958387785,0.68,178.33,178.31,44.83756773]
[1752958388479,5.60789591,178.32,178.31,44.83756773]
[1752958389182,5.60789591,178.32,178.3,16.78468397]
[1752958389183,6.28789591,178.32,178.3,61.5822517]
[1752958389386,6.28789591,178.32,178.29,16.78468397]
[1752958389598,6.28789591,178.32,178.19,0.03]
[1752958389599,24.56648397,178.29,178.19,0.03]
[1752958389786,0.56182931,178.28,178.19,0.03]
[1752958389984,0.68,178.27,178.21,6.1001]
[1752958390202,0.68,178.3,178.25,16.78468397]
[1752958390606,5.60883953,178.29,178.25,0.71]
[1752958390784,1.24182931,178.28,178.2,0.71]
[1752958390989,0.68,178.27,178.22,3.57756773]
[1752958391202,1.24182931,178.27,178.22,41.88]
[1752958391411,6.28883953,178.29,178.26,3.57756773]
[1752958391706,6.28883953,178.29,178.27,3.57756773]
[1752958391910,5.60883953,178.29,178.26,45.45756773]
[1752958392095,0.68,178.28,178.26,45.45756773]
[1752958392899,6.28922812,178.28,178.26,45.45756773]
[1752958395413,1.5478,178.24,178.19,0.03]
[1752958395707,0.68,178.27,178.17,0.71]
[1752958396023,0.68,178.27,178.18,16.78468397]
[1752958396316,0.68,178.27,178.22,3.57756773]
[1752958396488,6.28978346,178.26,178.22,3.57756773]
[1752958397115,6.28978346,178.26,178.23,3.57756773]
[1752958397417,0.68,178.29,178.25,3.57756773]
[1752958397602,1.24182931,178.28,178.26,3.57756773]
[1752958397794,1.24182931,178.28,178.25,3.57756773]
[1752958397991,0.68,178.27,178.25,3.57756773]
[1752958398320,5.60978346,178.26,178.25,3.57756773]
[1752958399202,5.60978346,178.26,178.24,3.57756773]
[1752958399412,5.60978346,178.26,178.25,3.57756773]
[1752958400210,5.60978346,178.26,178.23,42.33]
[1752958400517,5.60978346,178.26,178.25,3.57756773]
[1752958401013,0.56182931,178.29,178.25,4.28756773]
[1752958401202,5.60864989,178.3,178.28,3.57756773]
[1752958401398,5.60864989,178.3,178.29,3.57756773]
[1752958403221,6.25864989,178.3,178.29,42.16]
[1752958403428,5.60864989,178.3,178.29,42.16]
[1752958403615,5.60864989,178.3,178.29,45.73756773]
[1752958403921,6.25864989,178.3,178.29,45.73756773]
[1752958404127,6.25864989,178.3,178.29,42.16]
[1752958404335,6.25864989,178.3,178.29,45.73756773]
[1752958404491,5.60789591,178.32,178.29,45.73756773]
[1752958404698,1.21182931,178.31,178.29,45.73756773]
[1752958405098,1.21182931,178.31,178.29,3.57756773]
[1752958405321,1.21182931,178.31,178.29,45.67756773]
[1752958406548,5.60852495,178.3,178.29,3.57756773]
[1752958406841,5.60852495,178.3,178.29,45.63756773]
[1752958407143,5.60852495,178.3,178.29,45.61756773]
[1752958407717,6.16916151,178.34,178.29,45.61756773]
[1752958407911,5.6073322,178.34,178.32,3.57756773]
[1752958408419,6.2573322,178.34,178.32,42.04]
[1752958409043,0.65,178.33,178.32,42.02]
[1752958409921,6.16916151,178.34,178.32,42.02]
[1752958410121,5.6073322,178.34,178.32,42.02]
[1752958412123,5.6073322,178.34,178.32,45.59756773]
[1752958413055,6.2573322,178.34,178.32,45.59756773]
[1752958413244,6.2573322,178.34,178.32,42.02]
[1752958415041,6.2573322,178.34,178.31,3.57756773]
[1752958415236,6.2573322,178.34,178.32,41.86]
[1752958416361,5.6073322,178.34,178.32,45.43756773]
[1752958416837,5.60702172,178.35,178.32,45.43756773]